Cogmind - Beta 15 @@@ ROGUE MODE // 2025.07.24 @ 12:47:43 Player: Fazzonamite Result: Destroyed by S-27 Virus with Autogun Performance ------------- Evolutions (6) 3000 Regions Visited (15) 3000 Robots Destroyed (13) 65 Value Destroyed (826) 826 Prototype IDs (26) 520 Alien Tech Used (0) 0 Bonus (2839) 2839 TOTAL SCORE: 10250 Bonus ------- Pacifist 1419 Follower Combat Kills 120 Entered Garrisons 200 Entered DSFs 500 Aligned with FarCom 300 Acquired ECA 300 Cogmind --------- Core Integrity 0/1150 Matter 300/300 Energy 99/100 System Corruption 7% Temperature Cool (0) Movement Core (50) Location -4/Upper Caves Parts ------- > --- POWER (2) -------- (None) > --- PROPULSION (5) --- (None) > --- UTILITY (10) ----- Makeshift Power Shielding Makeshift Hacking Suite Advanced Hacking Suite > --- WEAPON (2) ------- (None) > --- INVENTORY (5) ---- Micro Fission Core Armored Medium Treads Encrypted Comm Array Improved Datajack Powered Hammer Peak State ------------ > --- POWER ------------ Backup Power I Backup Power I > --- PROPULSION ------- Improved Gravmag System Linear Gravjet Improved Antigrav System Nuclear Pulse Thruster Nuclear Pulse Thruster > --- UTILITY ---------- Advanced Cryofiber Web Enhanced Optical Array Encrypted Comm Array Graphene Brace Hacking Suite Improved Hacking Suite Advanced Hacking Suite Improved System Shield Improved System Shield > --- WEAPON ----------- Powered Hammer Chainsword > --- INVENTORY -------- Micro Fission Core Improved Medium Treads Stasis Canceller Hardened Light Armor Plating Improved Datajack [Rating: 88] Favorites ----------- Power Backup Power I Engine Backup Power I Power Core Light Nuclear Core Propulsion Light Armored Exoskeleton Treads Armored Treads Leg Light Armored Exoskeleton Wheel Compact Wheel Hover Unit Linear Gravjet Flight Unit Cesium-ion Thruster Utility Hacking Suite Device Advanced Cryofiber Web Storage Medium Storage Unit Processor Enhanced Optical Array Hackware Hacking Suite Protection Layered Light Armor Plating Weapon Powered Hammer Ballistic Cannon Heavy Linear Accelerator Launcher Proton Missile Launcher Impact Weapon Powered Hammer Slashing Weapon Chainsword Build | -11 -10 -9 -9 -9 -8 -8 -7 -6 -6 -6 -6 -5 -4 -4 -4 ------- Run | Yrd Mat Mat Min Exi Min Mat Fac Fac Gar Fac DSF Fac Fac Upp Upp Slots Evolved 12 | . . 2 . . . 2 2 2 . . . 2 2 . . Power 1 | . . . . . . . . 1 . . . . . . . Propulsion 3 | . . . . . . 1 1 . . . . 1 . . . Utility 8 | . . 2 . . . 1 1 1 . . . 1 2 . . Weapon . | . . . . . . . . . . . . . . . . Parts Attached 74 | 3 . 2 8 . . 3 7 7 17 . 2 12 4 1 8 Power 10 | 1 . . 2 . . . . 2 3 . . . . . 2 Engine 7 | 1 . . 2 . . . . 2 1 . . . . . 1 Core 3 | . . . . . . . . . 2 . . . . . 1 Reactor . | . . . . . . . . . . . . . . . . Propulsion 25 | 2 . . 2 . . 1 3 1 5 . 1 5 2 . 3 Treads 4 | 1 . . 1 . . . 1 1 . . . . . . . Leg 2 | . . . . . . 1 . . 1 . . . . . . Wheel 5 | 1 . . 1 . . . 1 . . . . . . . 2 Hover 7 | . . . . . . . 1 . . . . 3 2 . 1 Flight 7 | . . . . . . . . . 4 . 1 2 . . . Utility 34 | . . 2 4 . . 2 2 4 8 . . 6 2 1 3 Device 17 | . . 1 3 . . 1 1 2 3 . . 3 2 1 . Storage 1 | . . 1 . . . . . . . . . . . . . Processor 3 | . . . . . . . 1 1 1 . . . . . . Hackware 7 | . . . . . . 1 . 1 1 . . 3 . . 1 Protection 6 | . . . 1 . . . . . 3 . . . . . 2 Artifact . | . . . . . . . . . . . . . . . . Weapon 5 | . . . . . . . 2 . 1 . 1 1 . . . Energy Gun . | . . . . . . . . . . . . . . . . Energy Cannon . | . . . . . . . . . . . . . . . . Ballistic Gun . | . . . . . . . . . . . . . . . . Ballistic Cannon 1 | . . . . . . . . . 1 . . . . . . Launcher 1 | . . . . . . . . . . . 1 . . . . Special Weapon . | . . . . . . . . . . . . . . . . Impact Weapon 1 | . . . . . . . 1 . . . . . . . . Slashing Weapon 2 | . . . . . . . 1 . . . . 1 . . . Piercing Weapon . | . . . . . . . . . . . . . . . . Special Melee Weapon . | . . . . . . . . . . . . . . . . Unidentified Prototypes 1 | . . . . . . . 1 . . . . . . . . Parts Lost 39 | . . . 2 . . 5 . . 4 . 2 8 . 5 13 Power 8 | . . . 1 . . 1 . . 1 . 1 1 . 1 2 Propulsion 17 | . . . 1 . . 1 . . 1 . . 6 . 4 4 Utility 14 | . . . . . . 3 . . 2 . 1 1 . . 7 Weapon . | . . . . . . . . . . . . . . . . Highest Loss Streak 7 | . . . 2 . . 4 . . 2 . 2 7 . 5 7 To Critical Strikes 1 | . . . . . . . . . . . . . . . 1 Average Backups 6 | 2 4 5 6 7 8 9 8 8 8 5 5 2 5 4 4 Power . | . 1 1 . . . . . . . . . . 1 1 1 Propulsion 1 | 1 2 2 1 1 1 2 2 2 2 1 1 1 1 . . Utility 3 | . 1 2 3 5 6 5 3 4 5 3 2 . 2 2 . Weapon . | . . . 1 1 1 1 2 . . . . . . . . Tool/Special . | . . . . . . . . . . . . . . . . Unused Backups 22 | 1 . 1 4 . . . 1 3 5 . 1 1 . 1 4 Power 3 | . . . . . . . . . . . . 1 . . 2 Propulsion 7 | . . . 3 . . . 1 . 1 . . . . 1 1 Utility 8 | . . 1 1 . . . . 1 4 . 1 . . . . Weapon 3 | 1 . . . . . . . 2 . . . . . . . Tool/Special 1 | . . . . . . . . . . . . . . . 1 Average Slot Usage (%) 72 | . 42 48 62 77 77 68 55 82 85 93 86 71 84 87 29 Engine 7 | . 14 11 10 11 11 7 2 12 6 6 6 4 10 8 1 Core 1 | . . . . . . . . . 5 6 4 . . . . Treads 3 | . 14 11 8 11 11 . 5 6 5 . . . . . . Leg 2 | . . . . . . 8 7 6 4 . . . . . . Wheel 5 | . 14 11 11 11 11 8 6 6 4 . . . . . 2 Hover 2 | . . . . . . . . . . . . 4 11 12 2 Flight 4 | . . . . . . . . . 3 26 26 17 10 7 . Device 14 | . . 7 18 22 22 17 7 16 14 13 13 18 9 14 3 Storage 4 | . . 7 11 11 11 9 7 6 5 . . . . . . Processor 6 | . . . . . . . 7 11 13 13 10 5 5 5 . Hackware 9 | . . . . . . 8 7 7 7 13 13 14 26 26 13 Protection 2 | . . . 3 11 11 8 . . 3 6 4 . . . 2 Impact Weapon 3 | . . . . . . . . 6 5 6 6 4 5 5 1 Peak Build Rating 88 | 3 3 5 15 16 16 26 35 56 56 53 57 64 83 88 65 Average Rating 42 | 1 3 4 8 15 16 25 26 52 53 53 49 54 78 82 30 On Entrance 32 | . 3 3 5 15 16 16 19 32 55 53 53 44 64 83 65 Naked Turns . | . . . . . . . . . . . . . . . . Heaviest Build 46 | 3 3 14 20 20 20 20 15 41 46 17 17 12 10 10 22 Greatest Support 56 | 16 16 16 16 10 10 30 30 30 18 18 18 18 12 21 56 Greatest Overweight (x) 12 | . . . 1 1 1 3 . 2 12 . . . . . . Average Overweight (x) . | . . . . 1 1 . . 1 1 . . . . . . Largest Inventory Capacity 10 | 5 5 10 10 10 10 10 10 10 10 5 5 5 5 5 5 Average Capacity 8 | 5 5 8 10 10 10 10 10 10 9 5 5 5 5 5 5 Most Carried 10 | 5 5 7 10 9 9 10 10 10 10 5 5 5 5 5 5 Average Carried 7 | 3 4 5 7 8 9 9 8 9 9 5 4 2 5 4 4 Final Capacity 10 | 5 5 10 10 10 10 10 10 10 5 5 5 5 5 5 5 Final Carried 10 | 4 5 7 8 9 9 9 10 10 5 5 5 5 5 5 5 Class Distribution -------------------- 61% | Mutant 14% | Scavenger-Sprinter 13% | Wizard-Mutant 8% | Hacker-Mutant Dominant Class ---------------- Mutant | -10/Materials Mutant | -9/Materials Mutant | -9/Mines Mutant | -9/Exiles Mutant | -8/Mines Mutant | -8/Materials Mutant | -7/Factory Mutant | -6/Factory Mutant | -6/Garrison Scavenger-Sprinter | -6/Factory Scavenger-Sprinter | -6/DSF Scavenger-Sprinter | -5/Factory Wizard-Mutant | -4/Factory Wizard-Mutant | -4/Upper Caves Hacker-Mutant | -4/Upper Caves Resources | -11 -10 -9 -9 -9 -8 -8 -7 -6 -6 -6 -6 -5 -4 -4 -4 ----------- Run | Yrd Mat Mat Min Exi Min Mat Fac Fac Gar Fac DSF Fac Fac Upp Upp Matter Collected 1021 | 230 . . 190 . . . . . 357 . . 55 12 75 102 Remotely . | . . . . . . . . . . . . . . . . Salvage Created 439 | . . . . . . . . . 254 . . 85 12 88 . Parts 12 | . . . . . . . . . 9 . . 1 . 2 . Haulers Intercepted . | . . . . . . . . . . . . . . . . Recyclers Shooed . | . . . . . . . . . . . . . . . . Parts Field Recycled . | . . . . . . . . . . . . . . . . Retrieved Matter . | . . . . . . . . . . . . . . . . Parts Self-Destructed 4 | . . . . . . . . . . . . . . . 4 Prevented 1 | . . . . . . . . . . . . . . 1 . Kills | -11 -10 -9 -9 -9 -8 -8 -7 -6 -6 -6 -6 -5 -4 -4 -4 ------- Run | Yrd Mat Mat Min Exi Min Mat Fac Fac Gar Fac DSF Fac Fac Upp Upp Combat Hostiles Destroyed 10 | . . . . . . . . . 5 . . 1 . 4 . Melee 7 | . . . . . . . . . 4 . . . . 3 . AOE 1 | . . . . . . . . . . . . 1 . . . Classes Destroyed 6 | . . . . . . . . . 3 . . 2 1 . . Mechanic 2 | . . . . . . . . . . . . 2 . . . Operator 1 | . . . . . . . . . . . . . 1 . . Swarmer 5 | . . . . . . . . . 1 . . . . 4 . Sentry 3 | . . . . . . . . . 3 . . . . . . Specialist 1 | . . . . . . . . . 1 . . . . . . Programmer 1 | . . . . . . . . . . . . 1 . . . Best Kill Streak 4 | . . . . . . . . . 2 . . 1 1 4 . Combat Bots Only 4 | . . . . . . . . . 2 . . 1 . 4 . Max Kills in Single Turn 1 | . . . . . . . . . 1 . . 1 1 1 . Gunslinging . | . . . . . . . . . . . . . . . . Exploded 1 | . . . . . . . . . . . . 1 . . . Melee 1 | . . . . . . . . . 1 . . . . 1 . Uniques/NPCs Destroyed . | . . . . . . . . . . . . . . . . Combat | -11 -10 -9 -9 -9 -8 -8 -7 -6 -6 -6 -6 -5 -4 -4 -4 -------- Run | Yrd Mat Mat Min Exi Min Mat Fac Fac Gar Fac DSF Fac Fac Upp Upp Hostile Shots Fired 832 | . 17 6 19 . . 97 40 . 344 . 11 67 . 38 193 Missed 315 | . 5 3 7 . . 27 20 . 134 . 7 30 . 13 69 Hits 517 | . 12 3 12 . . 70 20 . 210 . 4 37 . 25 124 Melee 6 | . . . 1 . . . . . . . 2 . . . 3 Projectile 511 | . 12 3 11 . . 70 20 . 210 . 2 37 . 25 121 AOE 3 | . . . . . . . . . . . 2 1 . . . Critical Strikes 12 | . . . 1 . . 4 . . . . 1 3 . . 3 Actively Blocked 2 | . . . . . . . . . . . . . . . 2 Part Disruptions 1 | . . . . . . . . . 1 . . . . . . Damage Taken 6905 | . 159 46 175 . . 1281 138 8 1323 . 166 972 . 410 2227 Core 2324 | . 67 . 57 . . 200 19 . 186 . 28 603 . 78 1086 Absorbed by Shields 454 | . . . . . . . 16 8 430 . . . . . . Redirected to Shielding 5 | . . . . . . . . . . . . . . . 5 Ignored by Resistances 44 | . . . . . . . . . 44 . . . . . . Core Remaining (%) 75 | 100 73 . . . 85 63 97 . . . 74 39 . . . Volleys Fired 1 | . . . . . . . . . 1 . . . . . . Largest 1 | . . . . . . . . . 1 . . . . . . Hottest 70 | . . . . . . . . . 70 . . . . . . Shots Fired 1 | . . . . . . . . . 1 . . . . . . Gun . | . . . . . . . . . . . . . . . . Cannon 1 | . . . . . . . . . 1 . . . . . . Launcher . | . . . . . . . . . . . . . . . . Special . | . . . . . . . . . . . . . . . . Kinetic 1 | . . . . . . . . . 1 . . . . . . Thermal . | . . . . . . . . . . . . . . . . Explosive . | . . . . . . . . . . . . . . . . Electromagnetic . | . . . . . . . . . . . . . . . . Robot Hit Streak . | . . . . . . . . . . . . . . . . Robot Miss Streak . | . . . . . . . . . . . . . . . . Penetration Max . | . . . . . . . . . . . . . . . . Secondary Targets . | . . . . . . . . . . . . . . . . Shots Hit Robots 41 | . . . . . . . . . 30 . . 3 2 6 . Core Hits 7 | . . . . . . . . . 4 . . 1 . 2 . Critical Kills 2 | . . . . . . . . . 2 . . . . . . Critical Parts Destroyed 6 | . . . . . . . . . 3 . . 1 1 1 . Critical Strikes 8 | . . . . . . . . . 5 . . 1 1 1 . Smash 8 | . . . . . . . . . 5 . . 1 1 1 . Melee Attacks 87 | . . . . . . . 1 . 50 . . 17 3 14 2 Impact 84 | . . . . . . . . . 50 . . 17 3 12 2 Slashing 3 | . . . . . . . 1 . . . . . . 2 . Piercing . | . . . . . . . . . . . . . . . . Sneak Attacks 3 | . . . . . . . . . 1 . . 2 . . . Combat Hostiles 1 | . . . . . . . . . 1 . . . . . . Follow-up Attacks . | . . . . . . . . . . . . . . . . Damage Inflicted 1696 | . . . . . . . 5 . 1030 . . 343 106 212 . Guns . | . . . . . . . . . . . . . . . . Cannons . | . . . . . . . . . . . . . . . . Explosions 59 | . . . . . . . . . . . . 59 . . . Melee 1611 | . . . . . . . . . 1030 . . 263 106 212 . Ramming 26 | . . . . . . . 5 . . . . 21 . . . Kinetic . | . . . . . . . . . . . . . . . . Thermal . | . . . . . . . . . . . . . . . . Explosive 59 | . . . . . . . . . . . . 59 . . . Electromagnetic . | . . . . . . . . . . . . . . . . Impact 1611 | . . . . . . . . . 1030 . . 263 106 212 . Slashing . | . . . . . . . . . . . . . . . . Piercing . | . . . . . . . . . . . . . . . . Highest Corruption 10 | . . . . . . . . . 1 1 4 10 . . 7 Average Corruption 3 | . . . . . . . . . 1 1 2 5 . . 7 Corruption Purged 7 | . . . . . . . . . . . . 7 . . . Corruption Blocked . | . . . . . . . . . . . . . . . . Effects 14 | . . . . . . . . . 4 . . 4 . . 6 Message Errors 3 | . . . . . . . . . 1 . . 1 . . 1 Matter Fused 4 | . . . . . . . . . 1 . . . . . 3 Heat Flow Errors 2 | . . . . . . . . . 1 . . 1 . . . Energy Discharges 2 | . . . . . . . . . . . . 1 . . 1 Data Loss (minor) 3 | . . . . . . . . . 1 . . 1 . . 1 Overload Shots . | . . . . . . . . . . . . . . . . Overflow Damage 453 | . . . . . . . . . 109 . . 223 60 61 . Projectiles . | . . . . . . . . . . . . . . . . Explosions . | . . . . . . . . . . . . . . . . Melee 453 | . . . . . . . . . 109 . . 223 60 61 . Knockbacks 4 | . . . . . . . . . 2 . . 1 1 . . Impact 4 | . . . . . . . . . 2 . . 1 1 . . Kinetic . | . . . . . . . . . . . . . . . . Secondary . | . . . . . . . . . . . . . . . . Self-Inflicted Damage 280 | . . . . . . . 2 . 154 . . 124 . . . Shots 2 | . . . . . . . . . 1 . . 1 . . . Rammed 2 | . . . . . . . 1 . . . . 1 . . . Targets Rammed 2 | . . . . . . . 1 . . . . 1 . . . Kicked . | . . . . . . . . . . . . . . . . Crushed . | . . . . . . . . . . . . . . . . Highest Temperature 195 | . . . . . . . . . 195 . . 105 . . . Average Temperature 66 | . . . . . . . . . 65 . . 69 . . . Received Heat Transfer 1308 | . 90 24 60 . . 567 26 . 301 . . 39 . 18 183 Siege Activations . | . . . . . . . . . . . . . . . . Martial Activations . | . . . . . . . . . . . . . . . . Shielding Activations . | . . . . . . . . . . . . . . . . Robots Disrupted . | . . . . . . . . . . . . . . . . Combat Hostiles . | . . . . . . . . . . . . . . . . Robots Corrupted 4 | . . . . . . . . . 1 . . 1 1 1 . Combat Hostiles 2 | . . . . . . . . . 1 . . . . 1 . Parts Fried 2 | . . . . . . . . . . . . 1 1 . . Impact Corruptions 16 | . . . . . . . . . 3 . . 6 4 3 . Robots Melted . | . . . . . . . . . . . . . . . . Combat Hostiles . | . . . . . . . . . . . . . . . . Parts Melted . | . . . . . . . . . . . . . . . . Heat Transferred . | . . . . . . . . . . . . . . . . Parts Sabotaged 2 | . . . . . . . . . . . . . . . 2 Parts Stolen . | . . . . . . . . . . . . . . . . Parts Stripped . | . . . . . . . . . . . . . . . . Power Chain Reactions . | . . . . . . . . . . . . . . . . Alert | -11 -10 -9 -9 -9 -8 -8 -7 -6 -6 -6 -6 -5 -4 -4 -4 ------- Run | Yrd Mat Mat Min Exi Min Mat Fac Fac Gar Fac DSF Fac Fac Upp Upp Maximum Alert Level 2 | . . . . . . . . . 2 1 . 1 . . . Low Security (%) 86 | 100 100 100 100 . 100 100 100 100 57 . 100 85 100 . . Level 1 11 | . . . . . . . . . 33 100 . 14 . . . Level 2 2 | . . . . . . . . . 8 . . . . . . Level 3 . | . . . . . . . . . . . . . . . . Level 4 . | . . . . . . . . . . . . . . . . Level 5 . | . . . . . . . . . . . . . . . . High Security . | . . . . . . . . . . . . . . . . Max Security . | . . . . . . . . . . . . . . . . Peak Influence 472 | . . 5 169 . . 80 30 10 472 247 172 298 115 . . Initial 247 | . . . . . . . . 4 14 247 172 79 115 . . Average 69 | . . 1 67 . . 21 6 . 184 247 162 53 73 . . Influence Increases 2038 | . . 9 209 . . 193 115 47 498 . . 457 45 165 300 Destroy 0b10 Robot/C 380 | . . . 140 . . 20 . . 100 . . 40 . 80 . Destroy 0b10 Robot/NC 15 | . . . . . . . . . . . . 10 5 . . Destroy Leader 50 | . . . 20 . . . . . 10 . . 10 . 10 . Allied During Kill 20 | . . . 19 . . 1 . . . . . . . . . Successful Hack 131 | . . 9 . . . 6 24 47 34 . . 3 8 . . Select Force Hacks 100 | . . . . . . . . . . . . 100 . . . Disable Machine 105 | . . . . . . . . . . . . 105 . . . Anti-Garrison Action 150 | . . . . . . . . . 150 . . . . . . Destroy Structure 232 | . . . . . . 1 1 . 114 . . 114 2 . . Partial Spotted 105 | . . . . . . 15 15 . 30 . . 15 30 . . Lose Combat Pursuer 750 | . . . 30 . . 150 75 . 60 . . 60 . 75 300 Influence Decreases 1968 | . . 9 160 49 . 193 104 38 46 225 95 372 242 196 239 Entered New Map 574 | . . . . 49 . . . 7 6 225 75 73 122 15 2 Time Decay 1012 | . . 9 160 . . 134 104 31 . . . 193 100 141 140 Lost Part 301 | . . . . . . 38 . . 40 . 20 66 . 40 97 Lost Ally 81 | . . . . . . 21 . . . . . 40 20 . . Squads Dispatched 16 | . 1 . . . . 4 2 1 . . 1 6 . . 1 Investigation 5 | . 1 . . . . 2 . . . . . 2 . . . Extermination 4 | . . . . . . . . 1 . . . 3 . . . Reinforcement 6 | . . . . . . 2 2 . . . 1 1 . . . Assault 1 | . . . . . . . . . . . . . . . 1 Garrison . | . . . . . . . . . . . . . . . . Intercept . | . . . . . . . . . . . . . . . . Searches Triggered . | . . . . . . . . . . . . . . . . Construction Impeded 1 | . . . . . . . 1 . . . . . . . . Haulers Reinforced . | . . . . . . . . . . . . . . . . Active Scanning Responses . | . . . . . . . . . . . . . . . . Cargo Convoy Interrupts . | . . . . . . . . . . . . . . . . Stealth | -11 -10 -9 -9 -9 -8 -8 -7 -6 -6 -6 -6 -5 -4 -4 -4 --------- Run | Yrd Mat Mat Min Exi Min Mat Fac Fac Gar Fac DSF Fac Fac Upp Upp Distress Signals 3 | . . . . . . 3 . . . . . . . . . Communications Jammed . | . . . . . . . . . . . . . . . . Distress Signals . | . . . . . . . . . . . . . . . . Times Spotted 115 | . 4 5 9 . . 20 8 3 13 . 4 10 3 9 27 Peak Tracking Total 10 | . 4 5 4 . . 7 3 1 4 . 4 7 3 5 10 Tactical Retreats 27 | . . . 2 . . 5 4 . 3 . . 3 . 2 8 Traps | -11 -10 -9 -9 -9 -8 -8 -7 -6 -6 -6 -6 -5 -4 -4 -4 ------- Run | Yrd Mat Mat Min Exi Min Mat Fac Fac Gar Fac DSF Fac Fac Upp Upp Traps Triggered 13 | . 1 . 1 . . 2 1 1 7 . . . . . . Indirectly . | . . . . . . . . . . . . . . . . Trap Hack Attempts . | . . . . . . . . . . . . . . . . Triggered . | . . . . . . . . . . . . . . . . Disarmed . | . . . . . . . . . . . . . . . . Reprogrammed 1 | . . . . . . . . . . . . 1 . . . Reused 1 | . . . . . . . . . . . . . . 1 . Traps Extracted . | . . . . . . . . . . . . . . . . Installed 1 | . . . . . . . . . . . . . . 1 . Triggered 1 | . . . . . . . . . . . . . . 1 . Most Traps Carried 1 | . . . . . . . . . . . . . . 1 . Machines | -11 -10 -9 -9 -9 -8 -8 -7 -6 -6 -6 -6 -5 -4 -4 -4 ---------- Run | Yrd Mat Mat Min Exi Min Mat Fac Fac Gar Fac DSF Fac Fac Upp Upp Machines Disabled 10 | . . . . . . . . . 3 . . 7 . . . Max in Single Turn 6 | . . . . . . . . . 2 . . 6 . . . Garrison Access 1 | . . . . . . . . . . . . 1 . . . Phase Generator 1 | . . . . . . . . . 1 . . . . . . Machines Repaired . | . . . . . . . . . . . . . . . . Machines Dismantled . | . . . . . . . . . . . . . . . . Machines Sabotaged 1 | . . . . . . . . . . . . 1 . . . Overloaded Fab Kills . | . . . . . . . . . . . . . . . . Hacking | -11 -10 -9 -9 -9 -8 -8 -7 -6 -6 -6 -6 -5 -4 -4 -4 --------- Run | Yrd Mat Mat Min Exi Min Mat Fac Fac Gar Fac DSF Fac Fac Upp Upp Machines Accessed 34 | . 1 3 2 1 . 3 3 6 3 1 . 8 3 . . Terminals 18 | . 1 3 . . . 3 1 1 3 1 . 4 1 . . Fabricators 6 | . . . . . . . 1 1 . . . 2 2 . . Repair Stations 3 | . . . . . . . 1 1 . . . 1 . . . Recycling Units 2 | . . . . . . . . 2 . . . . . . . Scanalyzers . | . . . . . . . . . . . . . . . . Garrison Access 2 | . . . . . . . . 1 . . . 1 . . . Total Hacks 67 | . 2 8 2 1 . 8 4 15 7 1 . 13 6 . . Successful 38 | . 1 3 2 1 . 3 3 8 3 1 . 7 6 . . Failed 29 | . 1 5 . . . 5 1 7 4 . . 6 . . . Catastrophic 2 | . . 1 . . . . . 1 . . . . . . . Database Lockouts . | . . . . . . . . . . . . . . . . Manual 30 | . 1 5 . 1 . 8 1 3 . . . 9 2 . . Terminals 42 | . 2 8 . . . 8 2 2 7 1 . 8 4 . . Fabricators 7 | . . . . . . . 1 1 . . . 3 2 . . Repair Stations 4 | . . . . . . . 1 2 . . . 1 . . . Recycling Units 9 | . . . . . . . . 9 . . . . . . . Scanalyzers . | . . . . . . . . . . . . . . . . Garrison Access 2 | . . . . . . . . 1 . . . 1 . . . Terminal Hacks 13 | . . . 2 1 . . . 1 3 1 . 2 3 . . Prototype ID Bank 1 | . . . . . . . . . . . . . 1 . . Open Door 2 | . . . 2 . . . . . . . . . . . . Open DSF 1 | . . . . . . . . . . 1 . . . . . Level Access Points 1 | . . . . . . . . . . . . . 1 . . Branch Access Points 1 | . . . . . . . . . . . . 1 . . . Emergency Access Points 1 | . . . . . . . . . 1 . . . . . . Reprogram Traps 1 | . . . . . . . . . . . . 1 . . . Surveillance Status 1 | . . . . . . . . . . . . . 1 . . Zone Layout 1 | . . . . . . . . 1 . . . . . . . Patrol Navigation 1 | . . . . . . . . . 1 . . . . . . Security Stations 1 | . . . . . . . . . 1 . . . . . . Proto ID Catalog 1 | . . . . 1 . . . . . . . . . . . Fabricator Hacks 5 | . . . . . . . 1 1 . . . 1 2 . . Network Status 1 | . . . . . . . . . . . . . 1 . . Build 4 | . . . . . . . 1 1 . . . 1 1 . . Repair Station Hacks 3 | . . . . . . . 1 1 . . . 1 . . . Refit 3 | . . . . . . . 1 1 . . . 1 . . . Recycling Unit Hacks 2 | . . . . . . . . 2 . . . . . . . Report Inventory 2 | . . . . . . . . 2 . . . . . . . Scanalyzer . | . . . . . . . . . . . . . . . . Garrison Access Hacks 2 | . . . . . . . . 1 . . . 1 . . . Unlock Access 1 | . . . . . . . . 1 . . . . . . . Seal Access 1 | . . . . . . . . . . . . 1 . . . Unauthorized Hacks 13 | . 1 3 . . . 3 1 2 . . . 2 1 . . Terminals 11 | . 1 3 . . . 3 1 1 . . . 1 1 . . Assimilate 1 | . . 1 . . . . . . . . . . . . . Botnet 8 | . 1 2 . . . 2 1 1 . . . . 1 . . Operators 1 | . . . . . . 1 . . . . . . . . . Sabotage 1 | . . . . . . . . . . . . 1 . . . Fabricators 1 | . . . . . . . . . . . . 1 . . . Overload 1 | . . . . . . . . . . . . 1 . . . Repair Stations . | . . . . . . . . . . . . . . . . Recycling Units 1 | . . . . . . . . 1 . . . . . . . Mask 1 | . . . . . . . . 1 . . . . . . . Scanalyzers . | . . . . . . . . . . . . . . . . Garrison Access . | . . . . . . . . . . . . . . . . Data Cores Recovered 1 | . . . . . . . . . . . . . 1 . . Used 1 | . . . . . . . . . . . . . 1 . . Hacking Detections 20 | . 1 3 . . . 3 2 5 2 . . 3 1 . . Full Trace Events 1 | . . . . . . 1 . . . . . . . . . Feedback Events . | . . . . . . . . . . . . . . . . Feedback Blocked . | . . . . . . . . . . . . . . . . Robot Schematics Acquired . | . . . . . . . . . . . . . . . . Robots Built 4 | . . . . . . . 1 . . . . 2 1 . . Authchips . | . . . . . . . . . . . . . . . . Time 312 | . . . . . . . 67 . . . . 169 76 . . Total Robot Build Rating 21 | . . . . . . . 4 . . . . 12 5 . . Part Schematics Acquired . | . . . . . . . . . . . . . . . . Parts Built . | . . . . . . . . . . . . . . . . Authchips . | . . . . . . . . . . . . . . . . Time 53 | . . . . . . . . 53 . . . . . . . Total Part Build Rating . | . . . . . . . . . . . . . . . . Parts Repaired . | . . . . . . . . . . . . . . . . Time . | . . . . . . . . . . . . . . . . Parts Recycled . | . . . . . . . . . . . . . . . . Recycled Matter . | . . . . . . . . . . . . . . . . Retrieved Matter . | . . . . . . . . . . . . . . . . Retrieved Components . | . . . . . . . . . . . . . . . . Parts Scanalyzed . | . . . . . . . . . . . . . . . . Part Schematics Acquired . | . . . . . . . . . . . . . . . . Parts Damaged . | . . . . . . . . . . . . . . . . Bothacking | -11 -10 -9 -9 -9 -8 -8 -7 -6 -6 -6 -6 -5 -4 -4 -4 ------------ Run | Yrd Mat Mat Min Exi Min Mat Fac Fac Gar Fac DSF Fac Fac Upp Upp Used RIF Installer . | . . . . . . . . . . . . . . . . Robots Hacked . | . . . . . . . . . . . . . . . . Non-combat . | . . . . . . . . . . . . . . . . Combat . | . . . . . . . . . . . . . . . . Robot Hacks Applied . | . . . . . . . . . . . . . . . . Relay Couplers Released 3 | . . . . . . . . . 3 . . . . . . Programmers 3 | . . . . . . . . . 3 . . . . . . Fabnet Peak Effective % . | . . . . . . . . . . . . . . . . Robots Rewired . | . . . . . . . . . . . . . . . . Allies Hacked . | . . . . . . . . . . . . . . . . Hacks Repelled . | . . . . . . . . . . . . . . . . Allies | -11 -10 -9 -9 -9 -8 -8 -7 -6 -6 -6 -6 -5 -4 -4 -4 -------- Run | Yrd Mat Mat Min Exi Min Mat Fac Fac Gar Fac DSF Fac Fac Upp Upp Total Allies 8 | . . 1 3 . . . 1 . . . . 2 1 . . Largest Group 3 | . . 1 3 2 2 2 1 1 . . . 2 1 . . Highest-Rated Group 98 | . . 10 40 32 32 32 40 40 . . . 98 23 . . Highest-Rated Ally 49 | . . 10 16 16 16 16 40 40 . . . 49 23 . . Initial Warlord ECA Mod 11 | . . . . . . . . . . 3 3 2 1 1 1 Total Orders 2 | . . . . . . . 1 . . . . . 1 . . ROAM 1 | . . . . . . . 1 . . . . . . . . EXPLORE 1 | . . . . . . . . . . . . . 1 . . Ally Attacks 53 | . . . 35 . . 8 3 . . . . 7 . . . Total Damage 689 | . . . 385 . . 51 . . . . . 253 . . . Kills 10 | . . . 8 . . 1 . . . . . 1 . . . Allies Corrupted . | . . . . . . . . . . . . . . . . Allies Melted . | . . . . . . . . . . . . . . . . Intel | -11 -10 -9 -9 -9 -8 -8 -7 -6 -6 -6 -6 -5 -4 -4 -4 ------- Run | Yrd Mat Mat Min Exi Min Mat Fac Fac Gar Fac DSF Fac Fac Upp Upp Active Infowar (turns) 4413 | . . 93 489 222 63 468 . 588 1096 6 21 699 201 422 45 Optics 3074 | . . . . . . . . 584 1096 6 21 699 201 422 45 Structural 1335 | . . 93 489 222 63 468 . . . . . . . . . Cloaking 1821 | . . . . . . . . 532 1020 . . 269 . . . Robot Analysis Total . | . . . . . . . . . . . . . . . . Derelict Logs Recovered 4 | . . . 1 . . . . . . . . . . 2 1 Drone Launches 5 | . . . . . . . 3 . . . . . 2 . . Drone Recoveries 1 | . . . . . . . 1 . . . . . . . . Exploration | -11 -10 -9 -9 -9 -8 -8 -7 -6 -6 -6 -6 -5 -4 -4 -4 ------------- Run | Yrd Mat Mat Min Exi Min Mat Fac Fac Gar Fac DSF Fac Fac Upp Upp Turns Passed 5449 | 44 65 124 489 222 63 472 355 694 1096 6 21 841 201 422 334 Spaces Moved 5319 | 43 65 117 425 214 55 419 270 416 941 21 57 877 229 629 541 Core 621 | 19 . . . . . 2 . . 1 . . 168 . . 431 Treads . | . . . . . . . . . . . . . . . . Legs 25 | . . . . . . 5 11 9 . . . . . . . Wheels 2625 | 24 65 117 425 214 55 412 259 407 584 . . . . . 63 Hover 216 | . . . . . . . . . . . . 40 . 129 47 Flight 1832 | . . . . . . . . . 356 21 57 669 229 500 . Fastest Speed 26 | 50 100 100 95 95 95 95 100 100 26 26 26 26 37 37 50 Average Speed 73 | 77 100 100 96 95 95 96 101 122 91 26 26 36 37 41 56 Slowest Speed 650 | 100 100 100 100 95 95 200 140 140 650 26 26 50 37 60 100 Overloaded Moves . | . . . . . . . . . . . . . . . . Propulsion Burnouts . | . . . . . . . . . . . . . . . . Robots Hopped 1 | . . . . . . . . . 1 . . . . . . Potential Cave-ins . | . . . . . . . . . . . . . . . . Cave-ins Triggered . | . . . . . . . . . . . . . . . . Exploration Rate (%) 37 | 3 23 15 69 60 30 51 17 11 94 1 72 27 13 63 56 Regions Visited 15 Branch Regions 5 Pre-discovered Areas 3 | . . . 1 . . . . . . . . . . 1 1 Known Exits Taken 3 | . . . . . . . 1 1 . 1 . . . . . Unknown Exits Taken 10 | 1 1 1 1 1 1 1 . . . . . 1 1 1 . Scrap Searched 4 | . . . 1 . . . . . . . . . . 1 2 Spaces Dug 19 | . . . . . . . 1 . 3 . . 10 1 2 2 Terrain Destroyed 171 | . . . . . . . 1 . 77 . . 88 1 2 2 Melee 17 | . . . . . . . 1 . 1 . . 10 1 2 2 Projectile 2 | . . . . . . . . . 2 . . . . . . AOE 152 | . . . . . . . . . 74 . . 78 . . . Terrain Rammed . | . . . . . . . . . . . . . . . . Walls Destroyed . | . . . . . . . . . . . . . . . . Machines Disabled . | . . . . . . . . . . . . . . . . Actions | -11 -10 -9 -9 -9 -8 -8 -7 -6 -6 -6 -6 -5 -4 -4 -4 --------- Run | Yrd Mat Mat Min Exi Min Mat Fac Fac Gar Fac DSF Fac Fac Upp Upp Total 6713 | 53 65 123 508 232 65 489 351 602 1104 20 63 1367 337 768 566 Wait 1094 | . . . 57 18 11 60 63 161 50 . . 451 101 122 . Move 5303 | 42 64 116 424 213 54 418 269 416 938 20 56 876 228 628 541 Hop 1 | . . . . . . . . . 1 . . . . . . Pick Up 62 | 7 1 4 12 1 . 5 4 10 8 . 2 3 . 2 3 Fast Attach 38 | 1 . 1 . . . 1 2 1 11 . 1 9 4 1 6 Attach 42 | 2 . 1 7 . . 3 5 6 7 . 1 5 . . 5 Detach 9 | . . . . . . . 1 . . . . 3 . . 5 Swap 3 | . . . 1 . . . . . 2 . . . . . . Drop 56 | 1 . 1 7 . . 2 5 8 20 . 3 2 1 2 4 Fire 1 | . . . . . . . . . 1 . . . . . . Melee 85 | . . . . . . . 1 . 50 . . 17 3 12 2 Ram 2 | . . . . . . . 1 . . . . 1 . . . Kick . | . . . . . . . . . . . . . . . . Crush . | . . . . . . . . . . . . . . . . Escape Stasis 16 | . . . . . . . . . 16 . . . . . . Rewire . | . . . . . . . . . . . . . . . . Trap 1 | . . . . . . . . . . . . . . 1 . Miscellaneous . | . . . . . . . . . . . . . . . . Route ------- -11/Scrapyard -10/Materials -9/Materials -9/Mines (discovered 3 exits: *Mat x2 / *Exi) -9/Exiles -8/Mines -8/Materials -7/Factory -6/Factory -6/Garrison (discovered 3 exits: *Fac x3) -6/Factory -6/DSF -5/Factory (discovered 3 exits: *Fac / Upp x2) -4/Factory (discovered 5 exits: Res x4 / [*Upp]) -4/Upper Caves -4/Upper Caves (discovered 1 exit: *Res) History --------- Turn | Location | Event 8 | -11/Scrapyard | Discovered new exit (range 15) 45 | -11/Scrapyard | Entered Materials 103 | -10/Materials | Discovered new exit (range 8) 110 | -10/Materials | Entered another Materials area 110 | -9/Materials | Evolved 2 slots: Utility x2 205 | -9/Materials | Discovered new exit (range 15) 234 | -9/Materials | Entered Mines 234 | -9/Mines | Accompanied by 1 ally 234 | -9/Mines | Discovered new exit (range 11) 244 | -9/Mines | Met a Derelict bent on vengeance 286 | -9/Mines | Learned location of Storage (-8) 300 | -9/Mines | Build established: Mutant 379 | -9/Mines | Assisted by bots powering up and referring to "LRC-V3" 519 | -9/Mines | Discovered new exit (range 9) 533 | -9/Mines | Met a Derelict who couldn't figure out how to use a Trap Extractor 691 | -9/Mines | Found the Drone Emporium 699 | -9/Mines | Found Prototype Device 714 | -9/Mines | Deemed a non-threat by the Exiles lab entrance 714 | -9/Mines | Discovered new exit (range 5) 723 | -9/Mines | Entered Exiles 723 | -9/Exiles | Accompanied by 2 allies 747 | -9/Exiles | Met 8R-AWN 764 | -9/Exiles | Met EX-HEX 793 | -9/Exiles | Met EX-BIN 806 | -9/Exiles | Aligned with FarCom system 807 | -9/Exiles | Given EX-Vault access code 829 | -9/Exiles | Opened EX-Vault 836 | -9/Exiles | Found Cloak of Protection 855 | -9/Exiles | Warned to stay clear of 0b10 Research branches 869 | -9/Exiles | Exiles lab attacked by MAIN.C 915 | -9/Exiles | Discovered new exit (range 14) 945 | -9/Exiles | Left Exiles lab with Cloak of Protection 945 | -9/Exiles | Entered Mines 945 | -8/Mines | Accompanied by 2 allies 990 | -8/Mines | Discovered new exit (range 8) 1008 | -8/Mines | Entered Materials 1008 | -8/Materials | Accompanied by 2 allies 1008 | -8/Materials | Evolved 2 slots: Propulsion x1, Utility x1 1461 | -8/Materials | Discovered new exit (range 13) 1480 | -8/Materials | Entered Factory 1480 | -7/Factory | Evolved 2 slots: Propulsion x1, Utility x1 1481 | -7/Factory | Identified Thief Drone Bay 1507 | -7/Factory | Lost 4 parts (1n3u) 1729 | -7/Factory | Fabricated I-36 Angel? 1821 | -7/Factory | Discovered new exit (range 5) 1824 | -7/Factory | Identified exit to Factory 1835 | -7/Factory | Entered another Factory area 1835 | -6/Factory | Accompanied by 1 ally 1835 | -6/Factory | Evolved 2 slots: Power x1, Utility x1 2529 | -6/Factory | Identified exit to Garrison 2529 | -6/Factory | Entered Garrison 2529 | -6/Garrison | Warlord forces raided the area 2554 | -6/Garrison | Triggered checkpoint 2566 | -6/Garrison | Triggered checkpoint 2620 | -6/Garrison | Triggered checkpoint 2646 | -6/Garrison | Lost 8 allies 2649 | -6/Garrison | Triggered checkpoint 2757 | -6/Garrison | Triggered checkpoint 2763 | -6/Garrison | Discovered new exit (range 11) 2839 | -6/Garrison | Triggered checkpoint 2848 | -6/Garrison | Warlord forces retreated 2938 | -6/Garrison | Discovered new exit (range 12) 3055 | -6/Garrison | Discovered new exit (range 12) 3235 | -6/Garrison | Identified exit to Factory 3530 | -6/Garrison | Phase Generator disabled 3561 | -6/Garrison | Learned Factory security intel 3625 | -6/Garrison | Entered Factory 3630 | -6/Factory | Identified exit to DSF 3631 | -6/Factory | Entered DSF 3647 | -6/DSF | Additional patrols routed to DSF 3647 | -6/DSF | Discovered new exit (range 15) 3652 | -6/DSF | Entered Factory 3652 | -5/Factory | Evolved 2 slots: Propulsion x1, Utility x1 3732 | -5/Factory | Build established: Scavenger-Sprinter 4273 | -5/Factory | Lost 7 parts (1p5n1u) 4297 | -5/Factory | System corruption reached 10% 4348 | -5/Factory | Fabricated Y-64 Sentinel? 4372 | -5/Factory | Core integrity fell below 50% 4463 | -5/Factory | Identified exit to Upper Caves 4474 | -5/Factory | Discovered new exit (range 16) 4493 | -5/Factory | Entered another Factory area 4493 | -4/Factory | Evolved 2 slots: Utility x2 4626 | -4/Factory | Fabricated M-22 Extractor? 4664 | -4/Factory | Identified exit to Research 4667 | -4/Factory | Discovered new exit (range 14) 4694 | -4/Factory | Entered Upper Caves 4696 | -4/Upper Caves | Build established: Wizard-Mutant 4715 | -4/Upper Caves | Met a Warlord Commander 4717 | -4/Upper Caves | Warlord Commander delivered Encrypted Comm Array 4717 | -4/Upper Caves | Found Encrypted Comm Array 4755 | -4/Upper Caves | Learned 12 Research zone layouts 5046 | -4/Upper Caves | Learned Research stockpile data 5069 | -4/Upper Caves | Lost 5 parts (1p4n) 5110 | -4/Upper Caves | Discovered new exit (range 13) 5116 | -4/Upper Caves | Entered another Upper Caves area 5121 | -4/Upper Caves | Discovered exit to Research (range 6) 5162 | -4/Upper Caves | Attracted the attention of an 0b10 outpost 5181 | -4/Upper Caves | Core integrity fell below 50% 5207 | -4/Upper Caves | Lost 7 parts (1p1n5u) 5217 | -4/Upper Caves | Spotted B-86 Titan 5234 | -4/Upper Caves | Found DCF Scrap (14 items) 5328 | -4/Upper Caves | Learned location of Quarantine (-2) 5340 | -4/Upper Caves | Core integrity fell below 20% 5367 | -4/Upper Caves | Lost 4 parts (1p2n1u) 5450 | -4/Upper Caves | Destroyed by S-27 Virus with Autogun Last Messages --------------- World map updated: -2/Quarantine. 05332_ Slug penetrates Wall. 05332_ Penetrated by Slug. 05332_ Slug penetrates Wall. 05333_ Penetrated by Slug. 05335_ Arm. Huge Wheel destroyed. 05335_ Knocked back. 05336_ B-86 Titan activates siege mode. 05336_ Angular Momentum Engine destroyed. 05336_ Dropped Lgt. Antimatter Reactor. 05338_ Penetrated by Slug. 05338_ Acquired 55 matter. 05342_ Acquired Imp. Antigrav System. 05344_ Acquired 10 matter. 05348_ System corrupted: Matter fused (-6). 05412_ System corrupted: Matter fused (-5). 05436_ Acquired 17 matter. 05441_ S-27 Virus destroyed. 05447_ Critical hit (Destroy). 05447_ Imp. Antigrav System destroyed. Map ----- +----------------------------------------------------+ | ?????????????????????????????????????????????????? | | ?????????????????????????????????????????????????? | | ?????????????????????????????????????????????????? | | ?????????????????????????????????????????????????? | | ?????????????????????????????????????????????????? | | ?????????????????????????????????????????????????? | | ?????????????????????????????????????????????????? | | ?????????????????????????????????????????????????? | | ?????????????????????????????????????????????????? | | ?????????????????????????????????????????????????? | | ?????????????????????????????????????????????????? | | ?????????????????????????????????????????????????? | | ?????????????????????????????????????????????????? | | ?????????????????????????????????????????????????? | | ?????????????????????????????????????????????????? | | ?????????????????????????????????????????????????? | | ?????????????????????????????????????????????????? | | ????????????????????????????????????????####?????? | | ############ ????????####?????######??## ###???? | | # ## ####### ####### ##?# ##### | | # ######## #?# ### | | #""""""# #??## ## | | # # #??# ## ### ### | | / " #### ##### ######?# ####?# | | # ###//### ## #???## ##??????######???## | | # # ?# ####### @####????????????## | | # # ?# # ##??????????## | | # ## ## ## #?????????## | | # ### ####### #?????????# | | ?###### #?# #?????## ##?????????# | | ??????## ### #??????# ##?????????## | | ???????# #?????## ##????????## | | ???????# ## #?????# #######??# ### | | ????#### ## #?????## ## #??# ##?# | | ???## "## #?????## #?## ##?## | | ???# #### #?????# #?# #### | | ??## #####??# #????## ### ## | | ### ##?????# #???## ## | | ##????# #???# ### | | #????# #???## ##?### | | #????# #????## #????# ### | | ##????# #?????# #??### ##?? | | ###?????# #?????## #### ### ## ##??? | | ## ##???##### #??????# ##??# ## ####???? | | ## #### ##???#"%" #??????# #???# # #??????# | | ####??##"##### #####??????# #???# !% #??##### | | ###????## #?????????? ??## ####??# | | ""###### ####?????????# ??#* ####### | | [%/!! * %##???????????? ??#% | | ###%### %% #?????????? ### % | +----------------------------------------------------+ Best States ------------- Heat Dissipation 58 Coolant Potential 65 Energy Generation 25 Energy Capacity 350 Matter Stores 300 Matter Capacity 300 Sight Range 22 Terrain Scan Density 10 Cloak Strength 5 Base Temperature (-) 200 Corruption Block 8 Armor Coverage 150 Resistance: KI 20 Power Shielding 15 Melee Speed Boost 30 Evasion (%) 64 Recoil Reduction 1 Offensive Hacking 36 Defensive Hacking 24 Authchip Count 1 Item Schematics ----------------- None Robot Schematics ------------------ None Fabricated ------------ I-36 Angel | x1 | -7/Factory | Preloaded Y-64 Sentinel | x2 | -5/Factory | Preloaded M-22 Extractor | x1 | -4/Factory | Preloaded Repaired ---------- Nothing Alien Tech Used ----------------- None Achievements -------------- None Challenges ------------ None Game ------ Seed MakeshiftRingClaymores Manual? 0 Play Time 02:10:16 Cumulative 207.1 hours Start 2025.07.24 @ 09:04:16 End 2025.07.24 @ 12:47:43 Sessions 1 Manual Loads 0 Difficulty Rogue Special Mode None Game No. 135 Rogue 135 Adventurer 0 Explorer 0 Win Type - Total 5 Types 3/0/1/1/0/0/0/0/0/0 Lore% 60 Gallery% 57 Achievement% 51 Wizard Run 0 Options --------- Layout 2 ASCII 0 Keyboard 0 Movement Mouse Keybinds 0 Fullscreen 1 Font 48/Smallcaps Map View 55x44 Zoom Use 0% Tactical HUD 1 Map Filters NONE Filters NONE Steam 1 RUN: 9ad252ef-d105-4d90-b374-bf90fb1efd20